bitfinex/quotes_BTCUSD_20250529
["timestamp","ask_amount","ask_price","bid_price","bid_amount"]
[1748549950696,0.00049181,106120.0,106110.0,1.53566621]
[1748549952204,0.00049181,106120.0,106110.0,1.67465621]
[1748549952620,0.00049181,106120.0,106110.0,1.55196621]
[1748549953078,0.00049181,106120.0,106110.0,1.53171182]
[1748549953521,0.00049181,106120.0,106110.0,1.53566589]
[1748549953732,0.00049181,106120.0,106110.0,1.53566594]
[1748549954164,0.00049181,106120.0,106110.0,1.54801187]
[1748549954425,0.00049181,106120.0,106110.0,1.66433787]
[1748549955068,0.00049181,106120.0,106110.0,1.61433787]
[1748549955319,0.00049181,106120.0,106110.0,1.66433787]
[1748549955759,0.00049181,106120.0,106110.0,1.54801187]
[1748549956613,0.00049181,106120.0,106110.0,1.54793187]
[1748549957062,0.00049181,106120.0,106110.0,1.53163187]
[1748549957483,0.00049181,106120.0,106110.0,1.65481387]
[1748549957736,0.00049181,106120.0,106110.0,1.67031387]
[1748549958006,0.00049181,106120.0,106110.0,3.98399887]
[1748549958243,0.47708596,106140.0,106130.0,0.21671426]
[1748549958486,0.47713512,106140.0,106130.0,0.70602854]
[1748549958956,0.47713521,106140.0,106130.0,1.4499842]
[1748549959169,0.46771432,106140.0,106130.0,1.4499842]
[1748549959430,0.47713521,106140.0,106130.0,1.4499842]
[1748549959657,0.47713521,106140.0,106130.0,1.4470181]
[1748549960886,4.916e-05,106140.0,106130.0,1.4633181]
[1748549961321,4.916e-05,106140.0,106130.0,1.4470181]
[1748549961551,4.916e-05,106140.0,106130.0,1.44306244]
[1748549961775,4.916e-05,106140.0,106130.0,1.44806244]
[1748549961996,4.916e-05,106140.0,106130.0,1.46306244]
[1748549962516,4.916e-05,106140.0,106130.0,1.46106244]
[1748549963086,4.916e-05,106140.0,106130.0,1.89752329]
[1748549963346,4.916e-05,106140.0,106130.0,3.07120529]
[1748549963573,0.42634445,106150.0,106140.0,0.55669384]
[1748549963808,0.42634445,106150.0,106140.0,1.04296202]
[1748549964254,0.42634445,106150.0,106140.0,1.44296202]
[1748549964895,0.44234445,106150.0,106140.0,1.44396202]
[1748549964909,0.44234445,106150.0,106140.0,1.44596202]
[1748549966339,0.65567699,106150.0,106140.0,0.49706818]
[1748549966572,0.65567699,106150.0,106140.0,0.69897442]
[1748549966573,0.6650977,106150.0,106140.0,0.69897442]
[1748549966821,0.6650977,106150.0,106140.0,0.70099738]
[1748549967888,0.65567752,106150.0,106140.0,0.50314559]
[1748549968103,0.65567752,106150.0,106140.0,0.69157596]
[1748549968780,0.65567752,106150.0,106140.0,0.69553859]
[1748549968992,0.65567752,106150.0,106140.0,0.50710822]
[1748549969209,0.65567752,106150.0,106140.0,0.69553859]
[1748549969424,0.65567752,106150.0,106140.0,0.50710822]
[1748549969672,0.65567752,106150.0,106140.0,0.10710822]
[1748549970107,0.65567752,106150.0,106140.0,0.59840691]
[1748549970321,0.65567752,106150.0,106140.0,0.99322144]
[1748549970727,0.65567752,106150.0,106140.0,1.00264295]
[1748549970977,0.65567752,106150.0,106140.0,1.00264315]
[1748549971415,0.65567752,106150.0,106140.0,0.99966844]
[1748549971839,0.65567752,106150.0,106140.0,0.80181656]
[1748549972056,0.65567752,106150.0,106140.0,0.80177656]
[1748549972558,0.65567752,106150.0,106140.0,0.8047518]
[1748549972780,0.65567752,106150.0,106140.0,0.80475182]
[1748549973222,0.65567752,106150.0,106140.0,0.99962844]
[1748549973432,0.65567752,106150.0,106140.0,1.00260371]
[1748549973895,0.22933307,106150.0,106140.0,1.00260371]
[1748549974119,0.65567752,106150.0,106140.0,1.01202505]
[1748549974775,0.65567752,106150.0,106140.0,1.00904978]
[1748549976094,0.65567752,106150.0,106140.0,0.62022304]
[1748549976334,0.65567752,106150.0,106140.0,1.00900978]
[1748549977005,0.65567752,106150.0,106140.0,0.99958844]
[1748549977860,0.65567752,106150.0,106140.0,1.00900986]
[1748549978068,0.65567752,106150.0,106140.0,1.00900979]
[1748549978744,0.64625707,106150.0,106140.0,1.00900979]
[1748549979428,0.64625707,106150.0,106140.0,0.99958837]
[1748549979665,0.64625707,106150.0,106140.0,1.02785243]
[1748549979890,0.46726454,106150.0,106140.0,1.03727297]
[1748549980222,0.47668446,106150.0,106140.0,1.03727297]
[1748549980334,0.48610464,106150.0,106140.0,1.03331034]
[1748549980589,0.45460464,106150.0,106140.0,1.03331034]
[1748549980843,0.48042509,106150.0,106140.0,1.03727564]
[1748549981085,0.480425,106150.0,106140.0,1.03727564]
[1748549981304,0.47100464,106150.0,106140.0,1.03727564]
[1748549981522,0.23938419,106160.0,106140.0,1.46436429]
[1748549981746,0.64304838,106160.0,106150.0,0.20179795]
[1748549981961,0.02830694,106160.0,106150.0,0.23307249]
[1748549982172,0.46043192,106160.0,106150.0,0.22910761]
[1748549982388,0.4698513,106160.0,106150.0,0.62910761]
[1748549982602,0.45101271,106160.0,106150.0,0.62910761]
[1748549982814,0.46043201,106160.0,106150.0,0.63307138]
[1748549983237,0.44523201,106160.0,106150.0,0.63307138]
[1748549983921,0.44523201,106160.0,106150.0,0.72111142]
[1748549984150,0.44523201,106160.0,106150.0,0.72412485]
[1748549984621,0.45465139,106160.0,106150.0,0.72412485]
[1748549985085,0.46985139,106160.0,106150.0,0.72016108]
[1748549985324,0.46985148,106160.0,106150.0,0.72016108]
[1748549985550,0.46985148,106160.0,106150.0,0.32016108]
[1748549985818,0.46043201,106160.0,106150.0,0.32412463]
[1748549986164,0.01524914,106160.0,106150.0,0.72412463]
[1748549986396,0.43581271,106160.0,106150.0,0.72412463]
[1748549986617,0.44523174,106160.0,106150.0,0.72016108]
[1748549987286,0.44523165,106160.0,106150.0,0.72116108]
[1748549987784,0.44523165,106160.0,106150.0,0.72316108]
[1748549988228,0.44523165,106160.0,106150.0,0.73228987]
[1748549988672,0.43581253,106160.0,106150.0,0.73625325]
[1748549988923,0.43581253,106160.0,106150.0,0.73228987]
[1748549989190,0.43581253,106160.0,106150.0,0.73625325]
[1748549989450,0.44523156,106160.0,106150.0,0.73625325]
[1748549990185,0.44523156,106160.0,106150.0,0.73228987]
[1748549990186,0.48595077,106160.0,106150.0,0.73228987]
[1748549990428,0.48595068,106160.0,106150.0,0.73625307]
[1748549991833,0.48595068,106160.0,106150.0,0.73228987]
[1748549992539,0.47653156,106160.0,106150.0,0.73228987]
[1748549992805,0.46153156,106160.0,106150.0,0.73228987]
[1748549992972,0.47095068,106160.0,106150.0,0.73625304]
[1748549993602,0.48675068,106160.0,106150.0,0.73625304]
[1748549994430,0.49617006,106160.0,106150.0,0.83017304]
[1748549994632,0.67514644,106160.0,106150.0,0.61693855]
[1748549994855,1.09207212,106160.0,106150.0,0.11302539]
[1748549995075,1.09207212,106160.0,106150.0,0.00898526]
[1748549995076,1.38963212,106160.0,106150.0,0.00898526]
[1748549995365,1.38963212,106160.0,106150.0,0.00601343]
[1748549995778,0.96328767,106160.0,106150.0,0.00601343]
[1748549996217,0.96328767,106160.0,106150.0,0.0152827]
[1748549996642,0.96328767,106160.0,106150.0,0.00601343]
[1748549997557,1.38963212,106160.0,106150.0,0.00601343]
[1748549998626,0.66572767,106160.0,106150.0,0.00601343]
[1748549998838,0.96324767,106160.0,106150.0,0.00601343]
[1748549999293,0.96324767,106160.0,106150.0,0.01537449]
[1748549999523,0.96324767,106160.0,106150.0,0.00601343]
[1748549999731,0.66572767,106160.0,106150.0,0.00601343]
[1748549999938,0.96324767,106160.0,106150.0,0.00601343]
[1748550000788,0.96324767,106160.0,106150.0,0.21628085]
[1748550000789,0.23938322,106160.0,106150.0,0.21628085]
[1748550001008,0.23938322,106160.0,106150.0,0.72030488]
[1748550001009,0.46791289,106160.0,106150.0,0.72030488]
[1748550001210,0.46153192,106160.0,106150.0,0.72129824]
[1748550001618,0.4709513,106160.0,106150.0,0.72129824]
[1748550001832,0.46153192,106160.0,106150.0,0.72129824]
[1748550002245,0.03518747,106160.0,106150.0,0.72129824]
[1748550002459,0.46153192,106160.0,106150.0,0.72129824]
[1748550003135,0.42639359,106160.0,106150.0,0.73057689]
[1748550003343,0.43581253,106160.0,106150.0,0.73057689]
[1748550003552,0.42639359,106160.0,106150.0,0.73057689]
[1748550003786,4.914e-05,106160.0,106150.0,0.73057689]
[1748550003990,0.42639359,106160.0,106150.0,0.74211372]
[1748550004175,0.43581253,106160.0,106150.0,1.14211372]
[1748550004427,0.43581253,106160.0,106150.0,1.14607353]
[1748550004428,0.42639359,106160.0,106150.0,1.14607353]
[1748550004899,0.42639359,106160.0,106150.0,1.14211372]
[1748550005349,0.42639359,106160.0,106150.0,1.12661372]
[1748550006016,0.44269359,106160.0,106150.0,1.13057387]
[1748550006233,0.44269359,106160.0,106150.0,0.73941387]
[1748550006465,0.44269359,106160.0,106150.0,1.13053387]
[1748550006466,0.45809359,106160.0,106150.0,1.13053387]
[1748550006683,0.45809359,106160.0,106150.0,1.12657372]
[1748550006903,0.45809359,106160.0,106150.0,1.1305343]
[1748550007121,0.03174914,106160.0,106150.0,1.13053426]
[1748550007340,0.45809359,106160.0,106150.0,1.13053426]
[1748550007781,0.45809359,106160.0,106150.0,1.12657372]
[1748550008004,0.45809359,106160.0,106150.0,1.13053403]
[1748550008464,0.44269359,106160.0,106150.0,1.12657323]
[1748550008682,0.44269359,106160.0,106150.0,1.13053419]
[1748550008897,0.42639359,106160.0,106150.0,1.13053419]
[1748550010037,0.42639359,106160.0,106150.0,1.12657323]
[1748550010702,0.44209359,106160.0,106150.0,1.13053498]
[1748550010905,0.44209359,106160.0,106150.0,1.130535]
[1748550011382,0.44209359,106160.0,106150.0,1.12657325]
[1748550011621,0.44209359,106160.0,106150.0,1.13053492]
[1748550012301,0.44209359,106160.0,106150.0,1.12752158]
[1748550012567,0.44209359,106160.0,106150.0,1.13053492]
[1748550012795,0.45151253,106160.0,106150.0,1.13053492]
[1748550013017,0.46661253,106160.0,106150.0,1.12657325]
[1748550013239,0.45719359,106160.0,106150.0,0.72657325]
[1748550013454,0.47603192,106160.0,106150.0,0.73045577]
[1748550013859,0.46661262,106160.0,106150.0,0.73045577]
[1748550014110,0.46661262,106160.0,106150.0,0.72649325]
[1748550014319,0.47603183,106160.0,106150.0,0.73045536]
[1748550014544,0.46661262,106160.0,106150.0,0.73045536]
[1748550014773,0.45719359,106160.0,106150.0,0.72649325]
[1748550014993,0.44209359,106160.0,106150.0,0.72649325]
[1748550015225,0.45151262,106160.0,106150.0,0.73045306]
[1748550016091,0.44209359,106160.0,106150.0,0.73045306]
[1748550016551,0.40209359,106160.0,106150.0,0.73045306]
[1748550016771,0.41151253,106160.0,106150.0,0.73045299]
[1748550017219,0.41151253,106160.0,106150.0,1.13045299]
[1748550017447,0.42093165,106160.0,106150.0,1.47045299]
[1748550017675,0.41151253,106160.0,106150.0,1.47045299]
[1748550018119,0.42651253,106160.0,106150.0,1.47045299]
[1748550018366,0.42651253,106160.0,106150.0,1.46109434]
[1748550018599,0.43593156,106160.0,106150.0,1.46109434]
[1748550019027,0.42651253,106160.0,106150.0,1.46109434]
[1748550020133,0.44231253,106160.0,106150.0,1.46109434]
[1748550021038,0.44231253,106160.0,106150.0,1.45808107]
[1748550021270,0.44231253,106160.0,106150.0,1.46109439]
[1748550021510,0.04021894,106160.0,106150.0,1.46109439]
[1748550021734,0.46656339,106160.0,106150.0,1.46105439]
[1748550022421,0.45076339,106160.0,106150.0,1.46105439]
[1748550023542,0.43598251,106160.0,106150.0,1.46105439]
[1748550023769,0.44540145,106160.0,106150.0,1.46105439]
[1748550023978,0.44540145,106160.0,106150.0,1.16381439]
[1748550024198,0.45482066,106160.0,106150.0,1.46101439]
[1748550024661,0.46424004,106160.0,106150.0,1.46101439]
[1748550024881,0.45482066,106160.0,106150.0,1.46101439]
[1748550025320,0.46424013,106160.0,106150.0,1.07013439]
[1748550025531,0.46423996,106160.0,106150.0,1.46101439]
[1748550026229,0.0158,106160.0,106150.0,1.46101439]
[1748550026454,0.02521912,106160.0,106150.0,1.46101439]
[1748550026660,0.46098278,106160.0,106150.0,1.46101439]
[1748550026876,0.45156357,106160.0,106150.0,1.46101439]
[1748550028421,0.46098278,106160.0,106150.0,1.46101439]
[1748550028627,0.48540225,106160.0,106150.0,1.46101439]
[1748550028838,0.48540216,106160.0,106150.0,1.46101439]
[1748550029055,0.47598278,106160.0,106150.0,1.46101439]
[1748550029688,0.47598278,106160.0,106150.0,1.45705458]
[1748550029926,0.46656357,106160.0,106150.0,1.45705458]
[1748550030379,0.46656357,106160.0,106150.0,1.45677458]
[1748550030589,0.42656357,106160.0,106150.0,1.45687458]
[1748550030802,0.42656357,106160.0,106150.0,1.46084278]
[1748550031260,0.43598269,106160.0,106150.0,1.45687458]
[1748550033093,0.02441912,106160.0,106150.0,1.45687458]
[1748550033321,0.45076357,106160.0,106150.0,1.45687458]
[1748550034469,0.015,106160.0,106150.0,1.45687458]
[1748550034684,0.6851961,106170.0,106160.0,0.2166532]
[1748550034943,0.6851961,106170.0,106160.0,0.2017839]
[1748550035149,0.6851961,106170.0,106160.0,0.22363616]
[1748550035370,0.6851961,106170.0,106160.0,0.62363616]
[1748550035590,0.6851961,106170.0,106160.0,0.63305546]
[1748550035986,1.11154055,106170.0,106160.0,0.63305546]
[1748550037151,1.11154055,106170.0,106160.0,0.64847467]
[1748550037893,1.07154055,106170.0,106160.0,0.64847467]
[1748550038325,1.07154055,106170.0,106160.0,0.22021678]
[1748550038533,1.07154055,106170.0,106160.0,0.22963617]
[1748550038750,1.07154055,106170.0,106160.0,0.23905547]
[1748550038976,1.07154055,106170.0,106160.0,0.01298271]
[1748550039197,1.07154055,106170.0,106160.0,0.30725444]
[1748550039631,1.07154055,106170.0,106160.0,0.30328506]
[1748550039848,1.07154055,106170.0,106160.0,0.10547054]
[1748550040066,1.07154055,106170.0,106160.0,0.31667418]
[1748550040283,1.07154055,106170.0,106160.0,0.3127048]
[1748550040727,1.07154055,106170.0,106160.0,0.31667418]
[1748550040964,1.08804055,106170.0,106160.0,0.31667418]
[1748550042489,1.08804055,106170.0,106160.0,0.31369697]
[1748550042726,1.38024488,106170.0,106160.0,0.01199048]
[1748550042968,1.38024488,106170.0,106160.0,0.00901333]
[1748550042969,1.47129883,106170.0,106160.0,0.00901333]
[1748550047812,1.47129883,106170.0,106160.0,0.006]
[1748550048026,1.47129883,106170.0,106160.0,0.00901373]
[1748550048256,1.47119883,106170.0,106160.0,0.00901373]
[1748550050397,0.61850993,106170.0,106160.0,0.00901373]
[1748550050620,1.47119883,106170.0,106160.0,0.00901373]
[1748550051249,1.47119883,106170.0,106160.0,0.00853862]
[1748550053310,1.47111883,106170.0,106160.0,0.00853862]
[1748550057595,1.47111883,106170.0,106160.0,0.00853874]
[1748550060287,1.47103883,106170.0,106160.0,0.00853874]
[1748550061284,1.47103883,106170.0,106160.0,0.00853877]
[1748550062207,1.17423883,106170.0,106160.0,0.00853877]
[1748550062405,1.47103883,106170.0,106160.0,0.00853877]
[1748550065431,1.46580883,106170.0,106160.0,0.00853877]
[1748550067411,1.16900883,106170.0,106160.0,0.00853877]
[1748550067609,1.46572883,106170.0,106160.0,0.00853877]
[1748550069432,1.46572883,106170.0,106160.0,0.00853864]
[1748550070265,0.29981993,106170.0,106160.0,0.00853864]
[1748550070474,1.05048488,106170.0,106160.0,0.04083864]
[1748550070909,1.05048488,106170.0,106160.0,0.04380966]
[1748550071530,1.05048488,106170.0,106160.0,0.63220453]
[1748550071737,1.05048488,106170.0,106160.0,0.44380966]
[1748550072444,1.05048488,106170.0,106160.0,0.63220453]
[1748550072658,1.05048488,106170.0,106160.0,0.64162427]
[1748550072860,1.05048488,106170.0,106160.0,0.4532294]
[1748550073382,1.05048488,106170.0,106160.0,0.64162427]
[1748550074040,1.05048488,106170.0,106160.0,0.64172427]
[1748550074548,1.05048488,106170.0,106160.0,0.04390966]
[1748550074765,1.05048488,106170.0,106160.0,0.02810966]
[1748550075217,1.34712488,106170.0,106160.0,0.42810966]
[1748550075663,1.34712488,106170.0,106160.0,0.02810966]
[1748550076131,1.34712488,106170.0,106160.0,0.21650453]
[1748550076354,1.34712488,106170.0,106160.0,0.02810966]
[1748550076584,0.49443598,106170.0,106160.0,0.02810966]
[1748550076811,1.34712488,106170.0,106160.0,0.22592418]
[1748550077042,1.34712488,106170.0,106160.0,0.21650453]
[1748550077260,1.05048488,106170.0,106160.0,0.21650453]
[1748550077695,1.05048488,106170.0,106160.0,0.21051976]
[1748550077910,1.05048488,106170.0,106160.0,0.21650258]
[1748550078138,1.05048488,106170.0,106160.0,0.22592232]
[1748550078582,1.05048488,106170.0,106160.0,0.24182232]
[1748550079475,1.05048488,106170.0,106160.0,0.64182232]
[1748550080692,1.04106603,106170.0,106160.0,0.45342745]
[1748550080906,1.04106603,106170.0,106160.0,0.64182232]
[1748550081783,1.04106603,106170.0,106160.0,0.65124197]
[1748550081998,0.44518109,106170.0,106160.0,0.67008047]
[1748550082224,0.45459932,106170.0,106160.0,0.67404834]
[1748550082449,0.47343658,106170.0,106160.0,0.67404792]
[1748550082661,0.47343658,106170.0,106160.0,0.27404792]
[1748550082842,0.66181371,106170.0,106160.0,0.5611888]
[1748550083089,0.65239557,106170.0,106160.0,0.97060792]
[1748550083376,0.66181433,106170.0,106160.0,0.97060792]
[1748550083819,0.45459968,106170.0,106160.0,0.97060792]
[1748550083878,0.44518109,106170.0,106160.0,0.97060792]
[1748550084124,0.445181,106170.0,106160.0,0.97060792]
[1748550084362,0.445181,106170.0,106160.0,0.97060643]
[1748550084607,0.43576268,106170.0,106160.0,0.96764031]
[1748550085124,0.44518109,106170.0,106160.0,0.96764031]
[1748550085636,0.45459959,106170.0,106160.0,0.96764031]
[1748550085850,0.44518109,106170.0,106160.0,0.96764031]
[1748550086289,0.445181,106170.0,106160.0,0.96764031]
[1748550086509,0.43576268,106170.0,106160.0,0.97060547]
[1748550086752,0.4357625,106170.0,106160.0,0.96764021]
[1748550086985,0.44518073,106170.0,106160.0,0.96764021]
[1748550087240,0.91424445,106180.0,106170.0,0.24763262]
[1748550087547,0.43581083,106180.0,106170.0,0.34783885]
[1748550087657,0.00946638,106180.0,106170.0,0.35080299]
[1748550087874,0.43581083,106180.0,106170.0,0.75080299]
[1748550088333,0.44522826,106180.0,106170.0,0.75080299]
[1748550088568,0.43581083,106180.0,106170.0,0.74783885]
[1748550088813,0.43581083,106180.0,106170.0,0.7508011]
[1748550089041,0.43581083,106180.0,106170.0,1.1838928]
[1748550089042,4.913e-05,106180.0,106170.0,1.1838928]
[1748550089264,4.913e-05,106180.0,106170.0,1.1898928]
[1748550090154,0.42639358,106180.0,106170.0,1.1993291]
[1748550090385,0.43581092,106180.0,106170.0,1.1993291]
[1748550090618,0.64300579,106180.0,106170.0,1.18049197]
[1748550090838,0.44522835,106180.0,106170.0,1.20228928]
[1748550091064,0.43581092,106180.0,106170.0,1.19833623]
[1748550091292,0.44522844,106180.0,106170.0,1.19833623]
[1748550091534,0.44522835,106180.0,106170.0,1.19833623]
[1748550091758,0.45464587,106180.0,106170.0,1.19833623]
[1748550091982,0.43581092,106180.0,106170.0,1.19833623]
[1748550092201,0.64300561,106180.0,106170.0,1.00462405]
[1748550092459,0.65242349,106180.0,106170.0,0.47514966]
[1748550092706,1.06611529,106180.0,106170.0,0.02640966]
[1748550092936,1.06611529,106180.0,106170.0,0.51648908]
[1748550092937,1.08201529,106180.0,106170.0,0.51648908]
[1748550093168,1.08201529,106180.0,106170.0,0.51658908]
[1748550093397,1.37832616,106180.0,106170.0,0.02354908]
[1748550093685,1.37832616,106180.0,106170.0,0.01411278]
[1748550098682,1.37587021,106180.0,106170.0,0.01411278]
[1748550099123,1.37587021,106180.0,106170.0,0.01411342]
[1748550100580,1.37579021,106180.0,106170.0,0.01411342]
[1748550102152,1.35989021,106180.0,106170.0,0.01411342]
[1748550102160,0.93354576,106180.0,106170.0,0.01411342]
[1748550103562,1.35989021,106180.0,106170.0,0.41411342]
[1748550104218,1.35985021,106180.0,106170.0,0.41411342]
[1748550104460,0.93350576,106180.0,106170.0,0.41411342]
[1748550104712,0.91790576,106180.0,106170.0,0.41411342]
[1748550104954,0.91790576,106180.0,106170.0,0.61879055]
[1748550105186,0.91790576,106180.0,106170.0,0.6282094]
[1748550105614,0.62166576,106180.0,106170.0,0.6282094]
[1748550105832,0.90798501,106180.0,106170.0,0.6282094]
[1748550106074,0.90798501,106180.0,106170.0,0.2282094]
[1748550106526,0.61174501,106180.0,106170.0,0.2442094]
[1748550106755,0.42584158,106180.0,106170.0,0.6442094]
[1748550106984,0.1883432,106190.0,106180.0,0.21347726]
[1748550107233,0.1883432,106190.0,106180.0,0.22590847]
[1748550107466,0.20717709,106190.0,106180.0,0.32836608]
[1748550107692,0.20717709,106190.0,106180.0,0.3540836]
[1748550107914,0.20717709,106190.0,106180.0,0.34466579]
[1748550108149,0.20717709,106190.0,106180.0,0.34966579]
[1748550108411,0.63301659,106190.0,106180.0,0.35908322]
[1748550108645,0.63301659,106190.0,106180.0,0.36308322]
[1748550108646,0.64243367,106190.0,106180.0,0.36308322]
[1748550109327,0.64243367,106190.0,106180.0,0.35366579]
[1748550109544,0.63301712,106190.0,106180.0,0.35366579]
[1748550110236,0.63301712,106190.0,106180.0,0.74424818]
[1748550110452,0.62360031,106190.0,106180.0,0.73736588]
[1748550110671,0.62360031,106190.0,106180.0,0.74678349]
[1748550111538,0.62360031,106190.0,106180.0,0.73736588]
[1748550112317,0.62360031,106190.0,106180.0,0.71853028]
[1748550113190,0.62360031,106190.0,106180.0,0.31853028]
[1748550114786,0.61418323,106190.0,106180.0,0.31853028]
[1748550116185,0.61418323,106190.0,106180.0,0.3092124]
[1748550116627,0.61418323,106190.0,106180.0,0.31863034]
[1748550117988,0.61418323,106190.0,106180.0,0.35653027]
[1748550117989,0.64243358,106190.0,106180.0,0.35653027]
[1748550118431,0.63301721,106190.0,106180.0,0.71217682]
[1748550118647,0.63301721,106190.0,106180.0,0.52381744]
[1748550118871,0.63301721,106190.0,106180.0,0.71217682]
[1748550119521,0.63301721,106190.0,106180.0,0.7215947]
[1748550119730,0.63301721,106190.0,106180.0,0.74701249]
[1748550119950,0.63301721,106190.0,106180.0,0.7564301]
[1748550121295,0.63301721,106190.0,106180.0,0.34701249]
[1748550121537,0.62360031,106190.0,106180.0,0.34701249]
[1748550121960,0.62360031,106190.0,106180.0,0.74701249]
[1748550122654,0.62360031,106190.0,106180.0,0.7564301]
[1748550123148,0.62360031,106190.0,106180.0,0.74701249]
[1748550123368,0.62360031,106190.0,106180.0,0.75643019]
[1748550123858,0.62360031,106190.0,106180.0,0.76584835]
[1748550124812,0.62360031,106190.0,106180.0,0.36584835]
[1748550125261,0.62360031,106190.0,106180.0,0.77526587]
[1748550127785,0.62360031,106190.0,106180.0,0.76584799]
[1748550128463,0.62360031,106190.0,106180.0,0.34984799]
[1748550128949,0.62360031,106190.0,106180.0,0.72159516]
[1748550129173,0.62360031,106190.0,106180.0,0.73101286]
[1748550129731,0.62360031,106190.0,106180.0,0.74043047]
[1748550130391,0.44467494,106190.0,106180.0,0.74984799]
[1748550130611,0.45409202,106190.0,106180.0,0.74043047]
[1748550130826,0.44467494,106190.0,106180.0,0.74984799]
[1748550131047,0.45409193,106190.0,106180.0,0.75926542]
[1748550131271,0.45409193,106190.0,106180.0,0.75926497]
[1748550131729,0.45409184,106190.0,106180.0,0.75926497]
[1748550131973,0.44467494,106190.0,106180.0,0.35926497]
[1748550132197,0.45409184,106190.0,106180.0,0.37426497]
[1748550132417,0.45409184,106190.0,106180.0,0.77426735]
[1748550132888,0.65185048,106190.0,106180.0,0.77426735]
[1748550133114,0.66126756,106190.0,106180.0,0.74043258]
[1748550133560,0.66126756,106190.0,106180.0,0.74985001]
[1748550133847,0.51126756,106190.0,106180.0,0.74985001]
[1748550134516,0.51126756,106190.0,106180.0,0.71531541]
[1748550134766,0.50185101,106190.0,106180.0,0.72473302]
[1748550135454,0.50185101,106190.0,106180.0,0.32473302]
[1748550135674,0.50185101,106190.0,106180.0,0.35045054]
[1748550135905,0.4924342,106190.0,106180.0,0.74103302]
[1748550136643,0.4924342,106190.0,106180.0,0.73505265]
[1748550136874,0.4830173,106190.0,106180.0,0.73161772]
[1748550138971,0.4830173,106190.0,106180.0,0.33161772]
[1748550139433,0.4830173,106190.0,106180.0,0.73161772]
[1748550139897,0.4830173,106190.0,106180.0,0.7316179]
[1748550140119,0.47360031,106190.0,106180.0,0.43138268]
[1748550140314,0.47360031,106190.0,106180.0,0.71511773]
[1748550140998,0.47360031,106190.0,106180.0,0.72453471]
[1748550142360,0.47360031,106190.0,106180.0,0.32453471]
[1748550142575,0.47360031,106190.0,106180.0,0.34073471]
[1748550142790,0.47360031,106190.0,106180.0,0.69628134]
[1748550143016,0.47360031,106190.0,106180.0,0.72219922]
[1748550143236,0.47360031,106190.0,106180.0,0.10792196]
[1748550143237,0.49598323,106190.0,106180.0,0.10792196]
[1748550143949,0.49598323,106190.0,106180.0,0.01508196]
[1748550144374,1.02741961,106190.0,106180.0,0.01508196]
[1748550144585,0.22857717,106180.0,106170.0,0.0001]
[1748550144826,0.61535112,106180.0,106170.0,0.0001]
[1748550145039,1.46703428,106180.0,106170.0,0.0001]
[1748550145489,1.48157513,106180.0,106170.0,0.0001]
[1748550145708,0.1977958,106170.0,106160.0,0.0001]
[1748550145930,1.18587376,106170.0,106160.0,0.00014913]
[1748550147014,1.18587376,106170.0,106160.0,0.00614913]
[1748550147230,1.18587376,106170.0,106160.0,0.00814913]
[1748550147643,1.19500782,106170.0,106160.0,0.00814913]
[1748550148739,1.19500782,106170.0,106160.0,0.00214913]
[1748550148965,1.19500782,106170.0,106160.0,0.00314913]
[1748550151264,0.24455528,106160.0,106150.0,0.0001]
[1748550151482,0.24457392,106150.0,106140.0,0.0001]
[1748550151690,0.24457392,106150.0,106140.0,0.00014914]
[1748550151691,1.48303103,106150.0,106140.0,0.00014914]
[1748550152577,1.46849018,106150.0,106140.0,0.00014914]
[1748550152789,1.46849018,106150.0,106140.0,0.00314914]
[1748550153255,1.46849018,106150.0,106140.0,0.00714914]
[1748550156094,1.46849018,106150.0,106140.0,0.00724914]
[1748550159282,0.22965171,106140.0,106130.0,0.0001]
[1748550159586,1.5982304,106140.0,106130.0,0.0001]
[1748550159671,1.17238882,106140.0,106130.0,0.0001]
[1748550160550,1.17238882,106140.0,106130.0,0.0051]
[1748550161011,1.17238882,106140.0,106130.0,0.0001]
[1748550161458,1.17238882,106140.0,106130.0,0.0011]
[1748550162348,1.17438882,106140.0,106130.0,0.0011]
[1748550163491,1.47006882,106140.0,106130.0,0.0011]
[1748550165616,1.058995,106120.0,106110.0,0.00934315]
[1748550165881,1.058995,106120.0,106110.0,0.00890925]
[1748550165882,1.47742895,106120.0,106110.0,0.00890925]
[1748550166105,1.47742895,106120.0,106110.0,0.00014916]
[1748550166816,1.47742895,106120.0,106110.0,0.00214916]
[1748550167036,1.47742895,106120.0,106110.0,0.00314916]
[1748550167267,0.20735092,106100.0,106090.0,0.0161]
[1748550167489,0.9288725,106100.0,106090.0,0.03390069]
[1748550167707,0.9288725,106100.0,106090.0,0.02484261]
[1748550168415,0.9288725,106100.0,106090.0,0.0161]
[1748550168648,0.9288725,106100.0,106090.0,0.0181]
[1748550169314,0.9288725,106100.0,106090.0,0.0201]
[1748550170014,0.9288725,106100.0,106090.0,0.02882662]
[1748550170241,0.6331925,106100.0,106090.0,0.25149709]
[1748550170467,0.00942444,106100.0,106090.0,0.62340606]
[1748550170697,0.45411553,106100.0,106090.0,0.62340406]
[1748550170977,0.45411553,106100.0,106090.0,0.62340356]
[1748550171209,0.45411517,106100.0,106090.0,1.02340374]
[1748550171441,0.46354006,106100.0,106090.0,1.02340374]
[1748550171903,0.46354006,106100.0,106090.0,1.01468141]
[1748550172126,0.46354006,106100.0,106090.0,1.02340377]
[1748550172386,0.46354006,106100.0,106090.0,1.02340556]
[1748550172617,0.44469055,106100.0,106090.0,1.01763494]
[1748550172850,0.4446886,106110.0,106100.0,0.24777545]
[1748550173065,0.46353633,106110.0,106100.0,0.25079058]
[1748550173284,0.46353633,106110.0,106100.0,0.34347058]
[1748550173765,0.46353633,106110.0,106100.0,0.34642411]
[1748550174230,0.46353624,106110.0,106100.0,0.34642411]
[1748550174454,0.47296024,106110.0,106100.0,0.34642411]
[1748550174689,0.46353686,106110.0,106100.0,0.74842411]
[1748550174917,0.47296095,106110.0,106100.0,0.75715641]
[1748550175182,0.6520205,106110.0,106100.0,0.75716679]
[1748550175406,0.66144513,106110.0,106100.0,0.74843065]
[1748550175628,0.66144513,106110.0,106100.0,0.75716699]
[1748550175856,0.66144513,106110.0,106100.0,0.74843065]
[1748550176354,0.46353731,106110.0,106100.0,0.75785509]
[1748550176581,0.45411322,106110.0,106100.0,0.76659311]
[1748550176812,0.65202104,106110.0,106100.0,0.75785509]
[1748550177247,0.65202104,106110.0,106100.0,0.76659321]
[1748550177474,0.44468922,106110.0,106100.0,0.75785509]
[1748550177717,0.44468922,106110.0,106100.0,0.36180814]
[1748550177718,0.45411322,106110.0,106100.0,0.36180814]
[1748550178198,0.21675528,106110.0,106100.0,0.76180814]
[1748550178425,0.65202104,106110.0,106100.0,0.770551]
[1748550178700,0.65202104,106110.0,106100.0,0.77055155]
[1748550178925,0.4635374,106110.0,106100.0,0.77055155]
[1748550179153,0.45411322,106110.0,106100.0,0.77055155]
[1748550179381,0.64259686,106110.0,106100.0,0.7523837]
[1748550179601,0.45411322,106110.0,106100.0,0.76181538]
[1748550179822,0.45411322,106110.0,106100.0,0.75884797]
[1748550180054,0.65202095,106110.0,106100.0,0.75884797]
[1748550180281,0.46353731,106110.0,106100.0,0.75884797]
[1748550180516,0.46353731,106110.0,106100.0,0.76759786]